fUSD/lending_fUSD_20250322
["ID","MTS","AMOUNT","RATE_DAILY","PERIOD"]
[356525009,1742611859079,-540.31,0.00046849,120]
[356525010,1742611859088,-500.0,0.00046849,120]
[356525011,1742611859097,-1005.08,0.00046849,120]
[356525012,1742611859106,-599.65,0.00046849,120]
[356525013,1742611859115,-598.66,0.00046849,120]
[356525014,1742611859124,-1192.93,0.00046849,120]
[356525015,1742611859133,-630.60993419,0.00046849,120]
[356525016,1742611859145,-1988.78006581,0.00046849,120]
[356525017,1742611859154,-506.21,0.00046849,120]
[356525018,1742611859163,-500.0,0.00046849,30]
[356525019,1742611859172,-1910.83,0.00046849,120]
[356525020,1742611859181,-1571.89,0.00046849,120]
[356525021,1742611859190,-598.16,0.00046849,120]
[356525022,1742611859199,-500.0,0.00046849,120]
[356525023,1742611859208,-826.05,0.00046849,120]
[356525024,1742611859218,-804.26,0.00046849,120]
[356525025,1742611859227,-546.20914793,0.00046849,120]
[356525026,1742611859236,-500.0,0.00046849,120]
[356525027,1742611859245,-1467.67,0.00046849,120]
[356525028,1742611859255,-500.0,0.00046849,120]
[356525029,1742611859264,-500.0,0.00046849,120]
[356525030,1742611859273,-500.0,0.00046849,120]
[356525031,1742611859282,-4174.33,0.00046849,120]
[356525032,1742611859291,-1125.46,0.00046849,120]
[356525033,1742611859300,-860.38,0.00046849,120]
[356525034,1742611859310,-853.83,0.00046849,120]
[356525035,1742611859319,-314.7302041,0.00046849,120]
[356525036,1742611859328,-914.47,0.00046849,120]
[356525037,1742611859337,-500.0,0.00046849,120]
[356525038,1742611859346,-2311.24,0.00046849,120]
[356525039,1742611859355,-1539.43,0.00046849,120]
[356525040,1742611859365,-914.19,0.00046849,120]
[356525041,1742611859374,-500.0,0.00046849,120]
[356525042,1742611859384,-500.0,0.00046849,120]
[356525043,1742611859394,-510.65,0.00046849,120]
[356525044,1742611859404,-746.83,0.00046849,120]
[356525045,1742611859413,-500.0,0.00046849,120]
[356525046,1742611859422,-300.0,0.00046849,120]
[356525047,1742611859432,-500.0,0.00046849,120]
[356525048,1742611859441,-769.06,0.00046849,120]
[356525049,1742611859450,-500.0,0.00046849,120]
[356525050,1742611859463,-1870.04,0.00046849,7]
[356525051,1742611859481,-7398.46,0.00046849,120]
[356525052,1742611859495,-1812.28,0.00046849,120]
[356525053,1742611859507,-1125.58,0.00046849,120]
[356525054,1742611859523,-663.97,0.00046849,120]
[356525055,1742611859536,-1570.71,0.00046849,120]
[356525056,1742611859550,-961.92,0.00046849,120]
[356525057,1742611859566,-816.79,0.00046849,120]
[356525058,1742611859580,-701.17,0.00046849,120]
[356525059,1742611859592,-607.65,0.00046849,120]
[356525060,1742611859607,-500.0,0.00046849,120]
[356525061,1742611859621,-500.0,0.00046849,120]
[356525062,1742611859637,-1047.18,0.00046849,120]
[356525063,1742611859652,-792.26,0.00046849,120]
[356525064,1742611859667,-859.16,0.00046849,120]
[356525065,1742611859682,-500.0,0.00046849,120]
[356525066,1742611859696,-685.48,0.00046849,120]
[356525067,1742611859711,-557.33,0.00046849,120]
[356525068,1742611859725,-500.0,0.00046849,120]
[356525069,1742611859738,-1116.63,0.00046849,120]
[356525070,1742611859752,-500.0,0.00046849,120]
[356525071,1742611859768,-500.0,0.00046849,120]
[356525072,1742611859781,-2227.51,0.00046849,120]
[356525073,1742611859793,-500.0,0.00046849,120]
[356525074,1742611859804,-780.77,0.00046849,120]
[356525075,1742611859816,-1084.55,0.00046849,120]
[356525076,1742611859832,-767.93,0.00046849,120]
[356525077,1742611859843,-1000.0,0.00046849,120]
[356525078,1742611859853,-500.0,0.00046849,120]
[356525079,1742611859866,-779.18,0.00046849,120]
[356525080,1742611859881,-500.0,0.00046849,120]
[356525081,1742611859892,-500.0,0.00046849,120]
[356525082,1742611859903,-2559.97,0.00046849,120]
[356525083,1742611859914,-1542.42,0.00046849,120]
[356525084,1742611859929,-566.84,0.00046849,120]
[356525085,1742611859941,-668.6,0.00046849,120]
[356525086,1742611859953,-500.0,0.00046849,120]
[356525087,1742611859966,-509.26041581,0.00046849,120]
[356525088,1742611859978,-1292.33,0.00046849,120]
[356525089,1742611859990,-500.0,0.00046849,120]
[356525090,1742611860002,-500.0,0.00046849,120]
[356525091,1742611860015,-1715.7,0.00046849,120]
[356525092,1742611860026,-500.0,0.00046849,120]
[356525093,1742611860039,-2698.42,0.00046849,120]
[356525094,1742611860052,-537.61,0.00046849,120]
[356525095,1742611860064,-500.0,0.00046849,120]
[356525096,1742611860076,-500.0,0.00046849,120]
[356525097,1742611860089,-272.94365156,0.00046849,120]
[356525098,1742611860101,-500.0,0.00046849,120]
[356525099,1742611860113,-4757.37,0.00046849,120]
[356525100,1742611860126,-708.43,0.00046849,120]
[356525101,1742611860138,-3087.06,0.00046849,120]
[356525102,1742611860150,-522.97,0.00046849,120]
[356525103,1742611860163,-500.0,0.00046849,120]
[356525104,1742611860175,-500.0,0.00046849,120]
[356525105,1742611860188,-1384.68,0.00046849,120]
[356525106,1742611860200,-500.0,0.00046849,120]
[356525107,1742611860212,-822.81,0.00046849,120]
[356525108,1742611860224,-500.0,0.00046849,120]
[356525109,1742611860237,-500.0,0.00046849,120]
[356525110,1742611860250,-500.0,0.00046849,120]
[356525111,1742611860262,-5937.0,0.00046849,120]
[356525112,1742611860274,-500.0,0.00046849,120]
[356525113,1742611860286,-2870.35,0.00046849,120]
[356525114,1742611860298,-500.0,0.00046849,120]
[356525115,1742611860310,-708.18,0.00046849,120]
[356525116,1742611860322,-2486.82,0.00046849,120]
[356525117,1742611860334,-599.77,0.00046849,120]
[356525118,1742611860347,-500.0,0.00046849,120]
[356525119,1742611860359,-898.15,0.00046849,120]
[356525120,1742611860371,-833.62,0.00046849,120]
[356525121,1742611860383,-856.03,0.00046849,120]
[356525122,1742611860395,-740.24,0.00046849,120]
[356525123,1742611860407,-500.0,0.00046849,120]
[356525124,1742611860419,-868.71,0.00046849,120]
[356525125,1742611860432,-597.43,0.00046849,120]
[356525126,1742611860444,-500.0,0.00046849,120]
[356525127,1742611860456,-500.0,0.00046849,120]
[356525128,1742611860469,-1000.0,0.00046849,120]
[356525129,1742611860482,-500.0,0.00046849,120]
[356525130,1742611860494,-500.0,0.00046849,120]
[356525131,1742611860507,-500.0,0.00046849,120]
[356525132,1742611860519,-500.0,0.00046849,120]
[356525133,1742611860531,-500.0,0.00046849,120]
[356525134,1742611860544,-500.0,0.00046849,120]
[356525135,1742611860556,-150.0,0.00046851,30]
[356525136,1742611860568,-152.08,0.00046852,2]
[356525137,1742611860580,-150.0,0.00046856,30]
[356525138,1742611860591,-150.0,0.00046858,30]
[356525139,1742611860603,-187.71345462,0.00046868,15]
[356525140,1742611860616,-150.0,0.00046871,30]
[356525141,1742611860628,-326.13578311,0.00046873,10]
[356525142,1742611860642,-150.0,0.00046873,30]
[356525143,1742611860654,-150.0,0.00046874,30]
[356525144,1742611860666,-250.0,0.00046885,120]
[356525145,1742611860678,-150.0,0.00046891,30]
[356525146,1742611860690,-150.0,0.00046895,30]
[356525147,1742611860702,-150.0,0.000469,30]
[356525148,1742611860714,-3207.13,0.000469,2]
[356525149,1742611860727,-3207.13,0.000469,2]
[356525150,1742611860738,-605.65,0.000469,32]
[356525151,1742611860749,-2400.0,0.000469,17]
[356525152,1742611860761,-150.0,0.00046907,30]
[356525153,1742611860772,-150.0,0.00046916,30]
[356525154,1742611860784,-150.0,0.00046923,30]
[356525155,1742611860795,-150.0,0.00046938,30]
[356525156,1742611860807,-150.0,0.0004694,30]
[356525157,1742611860818,-150.0,0.00046944,30]
[356525158,1742611860829,-150.0,0.00046956,30]
[356525159,1742611860841,-150.0,0.0004696,30]
[356525160,1742611860854,-150.0,0.00046972,30]
[356525161,1742611860866,-150.0,0.00046981,30]
[356525162,1742611860878,-150.0,0.00046988,30]
[356525163,1742611860890,-150.0,0.00046988,30]
[356525164,1742611860902,-3216.71248294,0.00046989,120]
[356525165,1742611860914,-3216.71248294,0.00046989,120]
[356525166,1742611860925,-3216.71248294,0.00046989,120]
[356525167,1742611860937,-3216.71248294,0.00046989,120]
[356525168,1742611860949,-500.0,0.0004699,120]
[356525169,1742611860960,-500.0,0.0004699,120]
[356525170,1742611860971,-499.99,0.0004699,120]
[356525171,1742611860983,-500.0,0.0004699,120]
[356525172,1742611860995,-500.0,0.0004699,120]
[356525173,1742611861006,-500.0,0.0004699,120]
[356525174,1742611861018,-517.40926269,0.0004699,120]
[356525175,1742611861029,-500.0,0.0004699,120]
[356525176,1742611861041,-500.0,0.0004699,120]
[356525177,1742611861052,-500.0,0.0004699,120]
[356525178,1742611861063,-500.0,0.0004699,120]
[356525179,1742611861075,-500.0,0.0004699,120]
[356525180,1742611861086,-150.0,0.00046998,2]
[356525181,1742611861097,-2110.0,0.00047,30]
[356525182,1742611861109,-200.0,0.00047,120]
[356525183,1742611861120,-662.13539513,0.00047,16]
[356525184,1742611861132,-150.0,0.00047003,30]
[356525185,1742611861144,-588.24234554,0.00047005,15]
[356525186,1742611861156,-150.0,0.00047005,30]
[356525187,1742611861167,-206.0,0.0004701,30]
[356525188,1742611861177,-150.0,0.00047021,30]
[356525189,1742611861189,-150.0,0.00047025,30]
[356525190,1742611861199,-187.71345462,0.00047031,15]
[356525191,1742611861211,-2000.0,0.00047031,3]
[356525192,1742611861221,-2003.0818,0.00047031,3]
[356525193,1742611861231,-150.0,0.00047032,30]
[356525194,1742611861242,-150.0,0.00047032,30]
[356525195,1742611861252,-150.0,0.00047037,30]
[356525196,1742611861262,-164.51371916,0.00047043,120]
[356525197,1742611861272,-150.0,0.00047046,30]
[356525198,1742611861283,-160.57,0.00047052,2]
[356525199,1742611861293,-150.0,0.00047054,30]
[356525200,1742611861302,-150.0,0.00047068,30]
[356525201,1742611861311,-150.0,0.0004707,30]
[356525202,1742611861321,-150.0,0.00047076,30]
[356525203,1742611861332,-152.08,0.00047079,2]
[356525204,1742611861341,-152.0,0.0004708,3]
[356525205,1742611861351,-150.0,0.00047086,30]
[356525206,1742611861361,-150.0,0.0004709,30]
[356525207,1742611861371,-1211.3,0.000471,33]
[356525208,1742611861380,-150.0,0.00047103,30]
[356525209,1742611861390,-150.0,0.00047111,30]
[356525210,1742611861399,-150.0,0.00047119,30]
[356525211,1742611861409,-150.0,0.0004712,30]
[356525212,1742611861419,-51904.69393794,0.0004712,30]
[356525213,1742611861428,-1901.45,0.00047122,120]
[356525214,1742611861437,-1901.45,0.00047122,120]
[356525215,1742611861448,-500.0,0.00047122,120]
[356525216,1742611861458,-500.0,0.00047122,120]
[356525217,1742611861469,-999.37,0.00047122,120]
[356525218,1742611861479,-1236.79,0.00047122,120]
[356525219,1742611861489,-1236.79,0.00047122,120]
[356525220,1742611861498,-1236.79,0.00047122,120]
[356525221,1742611861508,-1270.4,0.00047122,120]
[356525222,1742611861518,-1270.4,0.00047122,120]
[356525223,1742611861529,-1270.4,0.00047122,120]
[356525224,1742611861539,-500.0,0.00047123,120]
[356525225,1742611861549,-1197.530458,0.00047123,120]
[356525226,1742611861559,-159.543633,0.00047123,120]
[356525227,1742611861569,-1550.260704,0.00047123,120]
[356525228,1742611861579,-500.0,0.00047123,2]
[356525229,1742611861589,-600.577591,0.00047123,2]
[356525230,1742611861600,-504.65541688,0.00047123,120]
[356525231,1742611861963,-496.64629973,0.00047123,120]
[356525232,1742611861987,-500.0,0.00047123,5]
[356525233,1742611862011,-500.0,0.00047123,120]
[356525234,1742611862037,-500.0,0.00047123,120]
[356525235,1742611862047,-500.0,0.00047123,120]
[356525236,1742611862057,-500.0,0.00047123,120]
[356525237,1742611862066,-500.0,0.00047123,120]
[356525238,1742611862076,-500.0,0.00047123,120]
[356525239,1742611862085,-500.0,0.00047123,120]
[356525240,1742611862094,-500.0,0.00047123,120]
[356525241,1742611862105,-554.85,0.00047123,120]
[356525242,1742611862115,-500.0,0.00047123,120]
[356525243,1742611862125,-500.0,0.00047123,120]
[356525244,1742611862134,-500.0,0.00047123,120]
[356525245,1742611862144,-500.0,0.00047123,120]
[356525246,1742611862154,-500.0,0.00047123,120]
[356525247,1742611862163,-500.0,0.00047123,120]
[356525248,1742611862173,-500.0,0.00047123,120]
[356525249,1742611862182,-500.0,0.00047123,120]
[356525250,1742611862192,-500.0,0.00047123,120]
[356525251,1742611862202,-601.47,0.00047123,120]
[356525252,1742611862212,-500.0,0.00047123,120]
[356525253,1742611862221,-500.0,0.00047123,120]
[356525254,1742611862230,-500.0,0.00047123,20]
[356525255,1742611862240,-500.0,0.00047123,120]
[356525256,1742611862249,-503.72436393,0.00047123,120]
[356525257,1742611862258,-785.48,0.00047123,120]
[356525258,1742611862267,-923.46,0.00047123,120]
[356525259,1742611862277,-1117.19,0.00047123,120]
[356525260,1742611862287,-500.0,0.00047123,120]
[356525261,1742611862297,-560.12,0.00047123,120]
[356525262,1742611862307,-434.19837615,0.00047123,120]
[356525263,1742611862317,-928.89,0.00047123,120]
[356525264,1742611862327,-500.0,0.00047123,120]
[356525265,1742611862336,-500.0,0.00047123,120]
[356525266,1742611862347,-500.0,0.00047123,120]
[356525267,1742611862356,-500.0,0.00047123,120]
[356525268,1742611862365,-500.0,0.00047123,120]
[356525269,1742611862374,-500.0,0.00047123,120]
[356525270,1742611862384,-500.0,0.00047123,120]
[356525271,1742611862394,-627.90288843,0.00047123,120]
[356525272,1742611862403,-500.0,0.00047123,120]
[356525273,1742611862413,-797.61,0.00047123,120]
[356525274,1742611862423,-500.0,0.00047123,120]
[356525275,1742611862432,-266.68355457,0.00047123,120]
[356525276,1742611862442,-500.0,0.00047123,120]
[356525277,1742611862451,-500.0,0.00047123,120]
[356525278,1742611862461,-500.0,0.00047123,120]
[356525279,1742611862470,-608.47513391,0.00047123,120]
[356525280,1742611862479,-500.0,0.00047123,120]
[356525281,1742611862489,-500.0,0.00047123,120]
[356525282,1742611862498,-1500.0,0.00047123,120]
[356525283,1742611862508,-500.0,0.00047123,120]
[356525284,1742611862517,-500.0,0.00047123,120]
[356525285,1742611862526,-595.94,0.00047123,120]
[356525286,1742611862536,-500.0,0.00047123,120]
[356525287,1742611862546,-500.0,0.00047123,120]
[356525288,1742611862555,-500.0,0.00047123,120]
[356525289,1742611862564,-500.0,0.00047123,120]
[356525290,1742611862573,-500.0,0.00047123,120]
[356525291,1742611862582,-500.0,0.00047123,120]
[356525292,1742611862591,-529.08,0.00047123,120]
[356525293,1742611862601,-500.0,0.00047123,120]
[356525294,1742611862610,-500.0,0.00047123,120]
[356525295,1742611862619,-731.71,0.00047123,120]
[356525296,1742611862628,-500.0,0.00047123,120]
[356525297,1742611862640,-500.0,0.00047123,120]
[356525298,1742611862649,-614.00600767,0.00047123,120]
[356525299,1742611862659,-500.0,0.00047123,120]
[356525300,1742611862668,-633.4,0.00047123,120]
[356525301,1742611862678,-500.0,0.00047123,120]
[356525302,1742611862687,-500.0,0.00047123,120]
[356525303,1742611862697,-755.42,0.00047123,120]
[356525304,1742611862706,-500.0,0.00047123,120]
[356525305,1742611862718,-500.0,0.00047123,120]
[356525306,1742611862729,-592.08,0.00047123,120]
[356525307,1742611862738,-500.0,0.00047123,120]
[356525308,1742611862747,-500.0,0.00047123,120]
[356525309,1742611862756,-500.0,0.00047123,120]
[356525310,1742611862765,-500.0,0.00047123,120]
[356525311,1742611862774,-500.0,0.00047123,120]
[356525312,1742611862783,-500.0,0.00047123,120]
[356525313,1742611862792,-500.0,0.00047123,120]
[356525314,1742611862802,-500.0,0.00047123,120]
[356525315,1742611862811,-500.0,0.00047123,120]
[356525316,1742611862820,-500.0,0.00047123,120]
[356525317,1742611862829,-500.0,0.00047123,120]
[356525318,1742611862838,-595.19873861,0.00047123,120]
[356525319,1742611862847,-500.0,0.00047123,120]
[356525320,1742611862856,-500.0,0.00047123,120]
[356525321,1742611862865,-500.0,0.00047123,120]
[356525322,1742611862875,-500.0,0.00047123,120]
[356525323,1742611862884,-500.0,0.00047123,120]
[356525324,1742611862894,-500.0,0.00047123,120]
[356525325,1742611862903,-1323.76,0.00047123,120]
[356525326,1742611862912,-536.96,0.00047123,120]
[356525327,1742611862921,-500.0,0.00047123,120]
[356525328,1742611862930,-530.21513654,0.00047123,120]
[356525329,1742611862939,-500.0,0.00047123,120]
[356525330,1742611862948,-500.0,0.00047123,120]
[356525331,1742611862957,-559.02821619,0.00047123,120]
[356525332,1742611862966,-500.0,0.00047123,120]
[356525333,1742611862975,-500.0,0.00047123,120]
[356525334,1742611862984,-500.0,0.00047123,120]
[356525335,1742611862993,-500.0,0.00047123,120]
[356525336,1742611863002,-500.0,0.00047123,120]
[356525337,1742611863011,-500.0,0.00047123,120]
[356525338,1742611863020,-500.0,0.00047123,120]
[356525339,1742611863030,-500.0,0.00047123,120]
[356525340,1742611863039,-500.0,0.00047123,120]
[356525341,1742611863049,-500.0,0.00047123,120]
[356525342,1742611863058,-691.27,0.00047123,120]
[356525343,1742611863068,-500.0,0.00047123,120]
[356525344,1742611863078,-1086.28,0.00047123,120]
[356525345,1742611863089,-500.0,0.00047123,120]
[356525346,1742611863099,-667.22,0.00047123,120]
[356525347,1742611863108,-500.0,0.00047123,120]
[356525348,1742611863118,-500.0,0.00047123,120]
[356525349,1742611863128,-643.54990976,0.00047123,120]
[356525350,1742611863137,-500.0,0.00047123,120]
[356525351,1742611863148,-500.0,0.00047123,120]
[356525352,1742611863157,-500.0,0.00047123,120]
[356525353,1742611863167,-1002.7,0.00047123,120]
[356525354,1742611863177,-1444.83,0.00047123,120]
[356525355,1742611863186,-500.0,0.00047123,120]
[356525356,1742611863195,-500.0,0.00047123,120]
[356525357,1742611863205,-500.0,0.00047123,120]
[356525358,1742611863214,-500.0,0.00047123,120]
[356525359,1742611863225,-500.0,0.00047123,120]
[356525360,1742611863234,-500.0,0.00047123,120]
[356525361,1742611863244,-500.0,0.00047123,120]
[356525362,1742611863253,-500.0,0.00047123,120]
[356525363,1742611863263,-500.0,0.00047123,120]
[356525364,1742611863272,-500.0,0.00047123,120]
[356525365,1742611863282,-500.0,0.00047123,120]
[356525366,1742611863292,-500.0,0.00047123,120]
[356525367,1742611863302,-550.23,0.00047123,120]
[356525368,1742611863312,-500.0,0.00047123,120]
[356525369,1742611863322,-345.96001416,0.00047123,120]
[356525370,1742611863332,-500.0,0.00047123,120]
[356525371,1742611863341,-500.0,0.00047123,120]
[356525372,1742611863351,-500.0,0.00047123,120]
[356525373,1742611863361,-500.0,0.00047123,120]
[356525374,1742611863370,-500.0,0.00047123,120]
[356525375,1742611863379,-500.0,0.00047123,120]
[356525376,1742611863389,-500.0,0.00047123,120]
[356525377,1742611863399,-500.0,0.00047123,120]
[356525378,1742611863408,-500.0,0.00047123,120]
[356525379,1742611863418,-600.22,0.00047123,120]
[356525380,1742611863428,-500.0,0.00047123,120]
[356525381,1742611863438,-620.55,0.00047123,120]
[356525382,1742611863448,-500.0,0.00047123,120]
[356525383,1742611863457,-613.07,0.00047123,120]
[356525384,1742611863467,-500.0,0.00047123,120]
[356525385,1742611863476,-771.78,0.00047123,120]
[356525386,1742611863487,-500.0,0.00047123,120]
[356525387,1742611863497,-545.49546363,0.00047123,120]
[356525388,1742611863506,-500.0,0.00047123,120]
[356525389,1742611863517,-536.21953682,0.00047123,120]
[356525390,1742611863526,-500.0,0.00047123,120]
[356525391,1742611863536,-500.0,0.00047123,120]
[356525392,1742611863545,-500.0,0.00047123,120]
[356525393,1742611863555,-500.0,0.00047123,120]
[356525394,1742611863565,-500.0,0.00047123,120]
[356525395,1742611863574,-500.0,0.00047123,120]
[356525396,1742611863584,-500.0,0.00047123,120]
[356525397,1742611863594,-1257.95,0.00047123,120]
[356525398,1742611863602,-500.0,0.00047123,120]
[356525399,1742611863612,-500.0,0.00047123,120]
[356525400,1742611863621,-500.0,0.00047123,120]
[356525401,1742611863631,-906.81,0.00047123,120]
[356525402,1742611863644,-500.0,0.00047123,120]
[356525403,1742611863653,-500.0,0.00047123,120]
[356525404,1742611863663,-500.0,0.00047123,120]
[356525405,1742611863672,-500.0,0.00047123,120]
[356525406,1742611863682,-500.0,0.00047123,120]
[356525407,1742611863692,-500.0,0.00047123,120]
[356525408,1742611863701,-1097.1,0.00047123,2]
[356525409,1742611863711,-572.84,0.00047123,120]
[356525410,1742611863722,-500.0,0.00047123,120]
[356525411,1742611863732,-630.91,0.00047123,120]
[356525412,1742611863743,-500.0,0.00047123,120]
[356525413,1742611863753,-500.0,0.00047123,60]
[356525414,1742611863763,-500.0,0.00047123,120]
[356525415,1742611863773,-500.0,0.00047123,120]
[356525416,1742611863784,-843.78,0.00047123,120]
[356525417,1742611863794,-500.0,0.00047123,120]
[356525418,1742611863804,-500.0,0.00047123,120]
[356525419,1742611863814,-900.29,0.00047123,120]
[356525420,1742611863824,-529.93,0.00047123,120]
[356525421,1742611863834,-1058.44,0.00047123,120]
[356525422,1742611863843,-979.29,0.00047123,120]
[356525423,1742611863853,-500.0,0.00047123,120]
[356525424,1742611863862,-500.0,0.00047123,120]
[356525425,1742611863871,-890.71,0.00047123,120]
[356525426,1742611863881,-500.0,0.00047123,120]
[356525427,1742611863891,-500.0,0.00047123,120]
[356525428,1742611863901,-500.0,0.00047123,120]
[356525429,1742611863910,-683.66,0.00047123,120]
[356525430,1742611863919,-500.0,0.00047123,120]
[356525431,1742611863928,-1798.51,0.00047123,120]
[356525432,1742611863937,-500.0,0.00047123,120]
[356525433,1742611863946,-500.0,0.00047123,120]
[356525434,1742611863956,-500.0,0.00047123,120]
[356525435,1742611863965,-2572.28,0.00047123,120]
[356525436,1742611863976,-511.37,0.00047123,120]
[356525437,1742611863986,-500.0,0.00047123,120]
[356525438,1742611863997,-767.88,0.00047123,120]
[356525439,1742611864007,-500.0,0.00047123,120]
[356525440,1742611864017,-500.0,0.00047123,120]
[356525441,1742611864026,-668.07,0.00047123,120]
[356525442,1742611864036,-500.0,0.00047123,120]
[356525443,1742611864046,-500.0,0.00047123,2]
[356525444,1742611864056,-500.0,0.00047123,120]
[356525445,1742611864065,-500.0,0.00047123,120]
[356525446,1742611864074,-500.0,0.00047123,120]
[356525447,1742611864083,-500.0,0.00047123,120]
[356525448,1742611864092,-1307.92,0.00047123,120]
[356525449,1742611864102,-500.0,0.00047123,120]
[356525450,1742611864110,-500.0,0.00047123,120]
[356525451,1742611864119,-510.47,0.00047123,120]
[356525452,1742611864129,-554.86004902,0.00047123,120]
[356525453,1742611864138,-829.44,0.00047123,120]
[356525454,1742611864147,-1048.95,0.00047123,120]
[356525455,1742611864157,-500.0,0.00047123,120]
[356525456,1742611864166,-500.0,0.00047123,120]
[356525457,1742611864177,-954.33,0.00047123,120]
[356525458,1742611864186,-500.0,0.00047123,120]
[356525459,1742611864197,-500.0,0.00047123,120]
[356525460,1742611864207,-506.08,0.00047123,120]
[356525461,1742611864217,-500.0,0.00047123,120]
[356525462,1742611864227,-500.0,0.00047123,120]
[356525463,1742611864237,-500.0,0.00047123,120]
[356525464,1742611864247,-500.0,0.00047123,120]
[356525465,1742611864256,-675.22,0.00047123,120]
[356525466,1742611864266,-2676.07,0.00047123,120]
[356525467,1742611864276,-959.43,0.00047123,120]
[356525468,1742611864286,-500.0,0.00047123,120]
[356525469,1742611864295,-500.0,0.00047123,120]
[356525470,1742611864305,-500.0,0.00047123,120]
[356525471,1742611864315,-500.0,0.00047123,120]
[356525472,1742611864324,-500.0,0.00047123,120]
[356525473,1742611864334,-500.0,0.00047123,120]
[356525474,1742611864343,-651.92,0.00047123,120]
[356525475,1742611864352,-500.0,0.00047123,120]
[356525476,1742611864361,-500.0,0.00047123,120]
[356525477,1742611864370,-500.0,0.00047123,120]
[356525478,1742611864379,-500.0,0.00047123,120]
[356525479,1742611864389,-500.0,0.00047123,120]
[356525480,1742611864399,-500.0,0.00047123,120]
[356525481,1742611864408,-500.0,0.00047123,120]
[356525482,1742611864417,-500.0,0.00047123,30]
[356525483,1742611864428,-500.0,0.00047123,120]
[356525484,1742611864438,-500.0,0.00047123,120]
[356525485,1742611864447,-500.0,0.00047123,120]
[356525486,1742611864457,-500.0,0.00047123,120]
[356525487,1742611864467,-500.0,0.00047123,120]
[356525488,1742611864477,-500.0,0.00047123,120]
[356525489,1742611864486,-2903.24,0.00047123,120]
[356525490,1742611864496,-500.0,0.00047123,120]
[356525491,1742611864510,-500.0,0.00047123,120]
[356525492,1742611864520,-583.4,0.00047123,120]
[356525493,1742611864529,-500.0,0.00047123,120]
[356525494,1742611864539,-500.0,0.00047123,120]
[356525495,1742611864549,-500.0,0.00047123,30]
[356525496,1742611864559,-500.0,0.00047123,120]
[356525497,1742611864568,-518.38391005,0.00047123,120]
[356525498,1742611864578,-1012.44,0.00047123,120]
[356525499,1742611864588,-534.20567421,0.00047123,120]
[356525500,1742611864597,-1541.07,0.00047123,7]
[356525501,1742611864606,-500.0,0.00047123,120]
[356525502,1742611864615,-500.0,0.00047123,120]
[356525503,1742611864624,-500.0,0.00047123,120]
[356525504,1742611864634,-500.0,0.00047123,120]
[356525505,1742611864648,-500.0,0.00047123,120]
[356525506,1742611864657,-500.0,0.00047123,120]
[356525507,1742611864666,-500.0,0.00047123,120]
[356525508,1742611864675,-500.0,0.00047123,120]